bitfinex/quotes_BTCUSD_20240828
["timestamp","ask_amount","ask_price","bid_price","bid_amount"]
[1724832131021,0.52371719,58795.0,58794.0,0.1]
[1724832131243,0.52371719,58795.0,58793.0,0.1]
[1724832131484,0.01349719,58794.0,58791.0,0.170092]
[1724832131730,0.01349719,58794.0,58789.0,0.340197]
[1724832131731,0.52180718,58795.0,58792.0,0.17009]
[1724832131959,0.52371689,58793.0,58792.0,0.17009]
[1724832132452,0.52371689,58793.0,58792.0,0.510272]
[1724832132676,0.53530407,58793.0,58792.0,0.340182]
[1724832132910,0.53530407,58793.0,58792.0,0.510273]
[1724832133132,0.53530407,58793.0,58792.0,1.190637]
[1724832133349,0.52180718,58793.0,58792.0,1.290637]
[1724832133565,0.51022,58793.0,58792.0,0.950455]
[1724832133806,0.52180718,58793.0,58792.0,0.950455]
[1724832134027,0.52180718,58793.0,58792.0,0.610273]
[1724832134248,1.11952,58793.0,58792.0,0.1]
[1724832134460,1.11952,58793.0,58790.0,0.170096]
[1724832134461,1.13301648,58793.0,58790.0,0.170096]
[1724832134703,0.01349648,58792.0,58791.0,0.1]
[1724832134948,0.52371648,58792.0,58791.0,0.1]
[1724832135397,0.53530366,58792.0,58791.0,0.1]
[1724832135617,0.56198093,58792.0,58791.0,0.1]
[1724832135872,0.56198061,58792.0,58791.0,0.1]
[1724832136408,0.56198061,58792.0,58791.0,0.270094]
[1724832136659,0.56198061,58792.0,58791.0,0.10004]
[1724832136896,0.56198061,58792.0,58791.0,0.510322]
[1724832137128,0.56198061,58792.0,58791.0,0.10004]
[1724832137353,0.56198061,58792.0,58791.0,0.610322]
[1724832137806,0.56198061,58792.0,58791.0,0.270134]
[1724832138053,0.56198061,58792.0,58791.0,0.95051]
[1724832138297,0.54848445,58792.0,58791.0,0.95051]
[1724832138959,0.54938316,58792.0,58791.0,1.290698]
[1724832139177,0.54938316,58792.0,58791.0,0.95051]
[1724832139412,0.56288188,58792.0,58791.0,0.95051]
[1724832139650,0.56288188,58792.0,58791.0,1.670798]
[1724832140102,0.54938316,58792.0,58791.0,1.670798]
[1724832140580,0.54938316,58792.0,58791.0,2.010986]
[1724832140805,0.54938316,58792.0,58791.0,0.95051]
[1724832141034,0.7356081,58792.0,58791.0,0.10004]
[1724832141285,0.7356081,58792.0,58791.0,0.170134]
[1724832141286,0.74719528,58792.0,58791.0,0.170134]
[1724832141504,0.74719528,58792.0,58791.0,0.270134]
[1724832141720,0.74719528,58792.0,58791.0,0.10004]
[1724832142155,0.86105481,58792.0,58791.0,0.10004]
[1724832142375,1.30868628,58792.0,58791.0,4e-05]
[1724832142629,1.13859528,58792.0,58791.0,4e-05]
[1724832143334,1.13859528,58792.0,58791.0,0.510322]
[1724832143335,0.56289528,58792.0,58791.0,0.510322]
[1724832143556,0.56289528,58792.0,58791.0,0.610322]
[1724832144000,0.56289528,58792.0,58791.0,0.270134]
[1724832144481,0.56289528,58792.0,58791.0,0.95051]
[1724832144711,0.54938316,58792.0,58791.0,0.95051]
[1724832144951,0.56288392,58792.0,58791.0,0.610322]
[1724832145462,0.56288392,58792.0,58791.0,0.10004]
[1724832145674,0.97478392,58792.0,58791.0,4e-05]
[1724832145888,0.97478392,58792.0,58791.0,0.10004]
[1724832147040,0.97478392,58792.0,58791.0,4e-05]
[1724832147780,0.97478392,58792.0,58791.0,0.10004]
[1724832148026,0.97478392,58792.0,58791.0,0.610322]
[1724832148027,0.97478772,58792.0,58791.0,0.610322]
[1724832148265,0.56288772,58792.0,58791.0,0.610322]
[1724832148508,0.56288772,58792.0,58791.0,0.270134]
[1724832148739,0.56288772,58792.0,58791.0,0.10004]
[1724832149197,0.56288772,58792.0,58791.0,0.270134]
[1724832149648,0.56288772,58792.0,58791.0,0.10004]
[1724832150111,0.56288772,58792.0,58791.0,4e-05]
[1724832150352,0.56288772,58792.0,58791.0,0.170134]
[1724832150573,0.56288772,58792.0,58791.0,0.270134]
[1724832151269,0.56288772,58792.0,58791.0,0.610322]
[1724832151742,0.56288772,58792.0,58791.0,1.290698]
[1724832151987,0.56288772,58792.0,58791.0,0.95051]
[1724832152209,0.56288772,58792.0,58791.0,0.951327]
[1724832153133,0.56288772,58792.0,58791.0,0.611139]
[1724832153777,0.56288772,58792.0,58791.0,0.511139]
[1724832155636,0.56288772,58792.0,58791.0,0.511139]
[1724832156967,0.56288772,58792.0,58791.0,0.170951]
[1724832158369,0.56288772,58792.0,58791.0,0.511139]
[1724832159170,0.56288772,58792.0,58791.0,0.851327]
[1724832159393,0.56288772,58792.0,58791.0,0.170951]
[1724832159611,0.61306026,58792.0,58791.0,0.000857]
[1724832159809,1.00916026,58792.0,58791.0,0.000857]
[1724832160227,0.95898772,58792.0,58791.0,0.000857]
[1724832160444,0.95868772,58792.0,58791.0,0.000857]
[1724832161273,1.0339637,58792.0,58791.0,0.000857]
[1724832162382,1.03395801,58792.0,58791.0,0.000857]
[1724832162585,1.20404901,58792.0,58791.0,0.000857]
[1724832163046,1.03395801,58792.0,58791.0,0.000857]
[1724832163248,1.12867949,58792.0,58791.0,0.000857]
[1724832163534,0.73257949,58792.0,58791.0,0.170951]
[1724832164178,0.81944859,58792.0,58791.0,0.170951]
[1724832164956,0.81939671,58792.0,58791.0,0.170951]
[1724832165156,0.71892401,58792.0,58791.0,0.170951]
[1724832165487,0.71892401,58792.0,58791.0,0.000857]
[1724832165697,1.24744537,58792.0,58791.0,0.000857]
[1724832165909,1.41753637,58792.0,58791.0,0.000857]
[1724832166340,1.30641723,58792.0,58791.0,0.000857]
[1724832166984,1.13632623,58792.0,58791.0,0.000857]
[1724832167194,0.71892401,58792.0,58791.0,0.000857]
[1724832167408,0.85805769,58792.0,58791.0,0.000857]
[1724832167614,0.85805769,58792.0,58791.0,0.170951]
[1724832167825,0.73242621,58792.0,58791.0,0.170951]
[1724832168065,0.83297225,58792.0,58791.0,0.50964355]
[1724832168247,0.56258536,58792.0,58791.0,0.50964355]
[1724832168480,0.83536532,58792.0,58791.0,0.50964355]
[1724832168701,0.56258536,58792.0,58791.0,0.50964355]
[1724832169132,0.73450715,58792.0,58791.0,0.50964355]
[1724832169376,0.83509022,58792.0,58791.0,0.50964355]
[1724832169594,0.73509792,58792.0,58791.0,0.50964355]
[1724832170211,0.83571316,58792.0,58791.0,0.50964355]
[1724832170448,0.73509792,58792.0,58791.0,0.16945555]
[1724832170924,0.72159572,58792.0,58791.0,0.16945555]
[1724832171176,0.73509815,58792.0,58791.0,0.16945555]
[1724832172458,0.73509815,58792.0,58789.0,0.170097]
[1724832172661,0.31180674,58791.0,58788.0,0.340203]
[1724832172878,0.10063331,58789.0,58788.0,0.85051]
[1724832173087,0.7965683,58789.0,58788.0,0.85051]
[1724832173293,0.69593499,58789.0,58788.0,0.85051]
[1724832173521,0.70752064,58789.0,58788.0,0.85051]
[1724832173727,0.80815474,58789.0,58788.0,0.85051]
[1724832173935,0.70752064,58789.0,58788.0,0.85051]
[1724832174138,0.80815505,58789.0,58788.0,0.85051]
[1724832174344,0.80686726,58789.0,58788.0,0.85051]
[1724832174636,0.53500808,58789.0,58788.0,1.597215]
[1724832174836,0.58532914,58789.0,58788.0,1.597215]
[1724832175934,0.53500808,58789.0,58788.0,1.597215]
[1724832176373,0.52150565,58789.0,58788.0,1.597215]
[1724832176585,0.52150565,58789.0,58788.0,1.598032]
[1724832177035,0.52150565,58789.0,58788.0,1.698032]
[1724832177333,0.52150565,58789.0,58788.0,1.918232]
[1724832177544,0.52150565,58789.0,58788.0,1.698032]
[1724832177966,0.52150565,58789.0,58788.0,1.698072]
[1724832179066,0.52150565,58789.0,58788.0,1.291572]
[1724832179297,0.53500732,58789.0,58788.0,1.291572]
[1724832179534,0.58531212,58789.0,58788.0,1.291572]
[1724832179766,0.53500732,58789.0,58788.0,1.291572]
[1724832179977,0.53500552,58789.0,58788.0,1.291572]
[1724832180192,0.5853057,58789.0,58788.0,1.291572]
[1724832180402,0.52150565,58789.0,58788.0,1.291572]
[1724832180640,0.53500547,58789.0,58788.0,1.291572]
[1724832181113,0.53500547,58789.0,58788.0,0.951367]
[1724832181340,0.5853035,58789.0,58788.0,0.951367]
[1724832181562,0.52341982,58789.0,58788.0,0.951367]
[1724832181791,0.53500547,58789.0,58788.0,0.951367]
[1724832182232,0.52150565,58789.0,58788.0,0.951367]
[1724832182545,0.53500531,58789.0,58788.0,0.611162]
[1724832182778,1.12790531,58789.0,58788.0,0.100857]
[1724832183010,1.2941829,58789.0,58788.0,0.000857]
[1724832183456,1.4642819,58789.0,58788.0,0.000857]
[1724832183663,1.8044809,58789.0,58788.0,0.000857]
[1724832184081,2.72413853,58789.0,58788.0,0.000857]
[1724832184303,2.89269017,58789.0,58788.0,0.000857]
[1724832186773,2.38393953,58789.0,58788.0,0.000857]
[1724832186984,1.94989533,58789.0,58788.0,0.000857]
[1724832187197,1.79921139,58789.0,58788.0,0.000857]
[1724832187408,1.80151089,58789.0,58788.0,0.000664]
[1724832187845,1.46129798,58789.0,58788.0,0.000664]
[1724832188267,1.44781223,58789.0,58788.0,0.000664]
[1724832188478,1.46129752,58789.0,58788.0,0.000664]
[1724832188960,1.29119852,58789.0,58788.0,0.000664]
[1724832189161,1.27771323,58789.0,58788.0,0.000664]
[1724832189366,1.29119811,58789.0,58788.0,0.000664]
[1724832189729,0.69829811,58789.0,58788.0,0.000664]
[1724832190415,0.68481323,58789.0,58788.0,0.000664]
[1724832190635,0.52150565,58789.0,58788.0,1.570181]
[1724832190851,0.52150565,58789.0,58788.0,0.889771]
[1724832190852,0.57171877,58789.0,58788.0,0.889771]
[1724832191066,0.52150565,58789.0,58788.0,0.170766]
[1724832191279,0.52150565,58789.0,58788.0,0.000664]
[1724832191501,0.52150565,58789.0,58788.0,0.851176]
[1724832191714,0.52150565,58789.0,58788.0,0.510971]
[1724832192796,0.52150565,58789.0,58788.0,0.170766]
[1724832193233,0.52150565,58789.0,58788.0,0.000664]
[1724832194491,0.5717406,58789.0,58788.0,0.000664]
[1724832195098,0.52150565,58789.0,58788.0,0.000664]
[1724832195397,0.57175101,58789.0,58788.0,0.000664]
[1724832195575,0.52150565,58789.0,58788.0,0.000664]
[1724832196209,0.57150565,58789.0,58788.0,0.000664]
[1724832196448,0.62175101,58789.0,58788.0,0.000664]
[1724832198885,0.57150565,58789.0,58788.0,0.000664]
[1724832199094,0.62175101,58789.0,58788.0,0.000664]
[1724832199309,0.57150565,58789.0,58788.0,0.170766]
[1724832199774,0.65902423,58789.0,58788.0,0.100664]
[1724832199988,0.57150565,58789.0,58788.0,0.100664]
[1724832200856,0.57150565,58789.0,58788.0,0.000664]
[1724832201107,0.57150565,58789.0,58788.0,0.100664]
[1724832201987,1.1034296,58789.0,58788.0,0.000664]
[1724832202202,2.1625276,58789.0,58788.0,0.000664]
[1724832202434,2.28367677,58789.0,58788.0,0.000664]
[1724832202867,2.1625276,58789.0,58788.0,0.000664]
[1724832203748,1.99860265,58789.0,58788.0,0.000664]
[1724832203968,2.16076663,58789.0,58788.0,0.000664]
[1724832205315,2.50096563,58789.0,58788.0,0.000664]
[1724832205569,2.6516996,58789.0,58788.0,0.000664]
[1724832205785,1.82056763,58789.0,58788.0,0.000664]
[1724832205997,2.31158595,58789.0,58788.0,0.000664]
[1724832206236,2.3115753,58789.0,58788.0,0.000664]
[1724832206478,2.9028297,58789.0,58788.0,0.000664]
[1724832206767,2.9028297,58789.0,58788.0,0.00017089]
[1724832206768,2.94863093,58789.0,58788.0,0.00017089]
[1724832206971,1.442485,58776.0,58775.0,0.000857]
[1724832207212,2.97626362,58776.0,58775.0,0.000857]
[1724832207428,3.14710432,58776.0,58775.0,0.000857]
[1724832207682,3.17379236,58776.0,58775.0,0.000857]
[1724832207890,2.88303018,58776.0,58775.0,0.000857]
[1724832208140,3.156548,58776.0,58775.0,0.000857]
[1724832208367,0.510568,58758.0,58757.0,0.0001646]
[1724832208597,1.953867,58758.0,58757.0,0.0001646]
[1724832208817,1.953867,58758.0,58755.0,0.000857]
[1724832208818,0.515585,58756.0,58755.0,0.000857]
[1724832209044,2.10451838,58756.0,58755.0,0.000857]
[1724832209257,2.7913964,58756.0,58755.0,0.000857]
[1724832209485,2.7913964,58756.0,58741.0,0.1]
[1724832209486,0.851092,58748.0,58741.0,0.1]
[1724832209706,1.109906,58742.0,58741.0,0.1]
[1724832209942,0.515733,58739.0,58729.0,0.00816]
[1724832210163,1.92793438,58739.0,58729.0,0.00816]
[1724832210379,2.99143697,58739.0,58729.0,0.00816]
[1724832210591,2.71898057,58739.0,58729.0,0.00816]
[1724832210806,2.61904396,58739.0,58729.0,0.00816]
[1724832211025,2.73897305,58739.0,58729.0,0.00816]
[1724832211243,1.61889094,58739.0,58729.0,0.00816]
[1724832211724,1.95937994,58739.0,58729.0,0.00816]
[1724832211981,2.35219589,58739.0,58729.0,0.00816]
[1724832212220,1.95937994,58739.0,58729.0,0.00816]
[1724832212448,2.12793158,58739.0,58729.0,0.00816]
[1724832212692,2.12793158,58739.0,58738.0,0.000857]
[1724832212929,2.46842058,58739.0,58738.0,0.000857]
[1724832213225,2.15463829,58739.0,58738.0,0.000857]
[1724832213878,1.81414929,58739.0,58738.0,0.000857]
[1724832214093,0.54926465,58739.0,58738.0,0.000857]
[1724832214532,0.54926465,58739.0,58738.0,0.023857]
[1724832214754,0.54926465,58739.0,58738.0,0.123857]
[1724832214983,0.53662671,58739.0,58738.0,0.123857]
[1724832215428,0.55175834,58739.0,58738.0,0.123857]
[1724832216723,0.60693417,58739.0,58738.0,0.123857]
[1724832216957,0.96097817,58739.0,58738.0,0.000857]
[1724832217615,1.30146717,58739.0,58738.0,0.000857]
[1724832217842,1.64195617,58739.0,58738.0,0.000857]
[1724832218056,1.30146717,58739.0,58738.0,0.000857]
[1724832218704,1.64195617,58739.0,58738.0,0.000857]
[1724832218960,2.39724517,58739.0,58738.0,0.000857]
[1724832219934,2.39724517,58739.0,58738.0,0.00037923]
[1724832220412,2.40224517,58739.0,58738.0,0.00037923]
[1724832220934,2.3932088,58739.0,58738.0,0.00011561]
[1724832221424,2.3932088,58739.0,58732.0,0.00816]
[1724832221425,2.13407752,58733.0,58732.0,0.00816]
[1724832221669,2.47460152,58733.0,58732.0,0.00816]
[1724832221912,2.97548515,58733.0,58732.0,0.00816]
[1724832222148,3.00841801,58733.0,58732.0,0.00816]
[1724832222393,2.69460391,58733.0,58732.0,0.00816]
[1724832222617,2.86315555,58733.0,58732.0,0.00816]
[1724832223276,2.49921203,58733.0,58732.0,0.00816]
[1724832223982,2.49421203,58733.0,58732.0,0.00816]
[1724832224223,2.32566039,58733.0,58732.0,0.00816]
[1724832225344,2.69460391,58733.0,58732.0,0.00816]
[1724832225807,3.03512791,58733.0,58732.0,0.00816]
[1724832226075,2.144834,58730.0,58716.0,0.00816]
[1724832226316,2.81426927,58730.0,58716.0,0.00816]
[1724832227013,1.197075,58721.0,58716.0,0.00816]
[1724832227250,1.197075,58721.0,58720.0,1e-06]
[1724832227251,2.83460452,58721.0,58720.0,1e-06]
[1724832227492,2.83460452,58721.0,58716.0,0.00816]
[1724832227493,1.798656,58717.0,58716.0,0.00816]
[1724832227734,2.23906711,58717.0,58716.0,0.00816]
[1724832227980,2.75487675,58717.0,58716.0,0.00816]
[1724832228468,2.65487675,58717.0,58716.0,0.00816]
[1724832229010,2.31426075,58717.0,58716.0,0.00816]
[1724832229255,2.44846761,58717.0,58716.0,0.00335635]
[1724832229730,2.78908361,58717.0,58716.0,0.00335635]
[1724832229975,2.78908361,58717.0,58716.0,0.00202052]
[1724832230227,1.192481,58701.0,58700.0,0.08784057]
[1724832230469,1.35265563,58701.0,58700.0,0.08784057]
[1724832230985,0.54253038,58701.0,58700.0,0.08804546]
[1724832231245,0.71288438,58701.0,58700.0,0.08804546]
[1724832231494,0.54253038,58701.0,58700.0,0.08804546]
[1724832231728,0.71288438,58701.0,58700.0,0.11104546]
[1724832232008,0.54253038,58701.0,58700.0,0.21104546]
[1724832232225,0.54253038,58701.0,58700.0,0.76770246]
[1724832232485,0.54253038,58701.0,58700.0,1.10841746]
[1724832232718,0.52760437,58701.0,58700.0,1.10841746]
[1724832233200,0.54242407,58701.0,58700.0,1.10841746]
[1724832233442,0.54242407,58701.0,58700.0,1.44913246]
[1724832233687,0.54242407,58701.0,58700.0,2.01177598]
[1724832233897,0.52760437,58701.0,58700.0,2.01177598]
[1724832234111,0.52760437,58701.0,58700.0,1.64783246]
[1724832234336,0.54242407,58701.0,58700.0,1.64783246]
[1724832234581,0.52760437,58701.0,58700.0,1.98854746]
[1724832234800,0.51950476,58701.0,58700.0,1.99354746]
[1724832235033,0.31950476,58701.0,58700.0,1.48263246]
[1724832235267,0.30468506,58701.0,58700.0,1.48263246]
[1724832235498,0.27618506,58701.0,58700.0,1.82334746]
[1724832236212,0.27618506,58701.0,58700.0,0.79620246]
[1724832236448,0.27618506,58701.0,58700.0,0.57434546]
[1724832237141,0.27618506,58701.0,58700.0,0.57516346]
[1724832237375,0.27618506,58701.0,58700.0,0.08886346]
[1724832237376,0.44653906,58701.0,58700.0,0.08886346]
[1724832237606,1.68658457,58701.0,58700.0,0.08865857]
[1724832237835,1.7015083,58701.0,58700.0,0.08865857]
[1724832238052,1.33318079,58701.0,58700.0,0.08865857]
[1724832238490,1.34669188,58701.0,58700.0,0.08865857]
[1724832238945,0.6652742,58701.0,58700.0,0.08886346]
[1724832239366,0.4949202,58701.0,58700.0,0.08886346]
[1724832239574,0.65176279,58701.0,58700.0,0.08886346]
[1724832239789,0.65176279,58701.0,58700.0,0.11186346]
[1724832240027,0.48140879,58701.0,58700.0,0.11186346]
[1724832240486,0.65176279,58701.0,58700.0,0.11165857]
[1724832240715,0.99247179,58701.0,58700.0,0.11186346]
[1724832240940,1.3561154,58701.0,58700.0,0.08865857]
[1724832241168,1.0154064,58701.0,58700.0,0.08865857]
[1724832241394,0.29110879,58701.0,58700.0,0.48796346]
[1724832241631,0.29110879,58701.0,58700.0,0.68132046]
[1724832241872,0.29110879,58701.0,58700.0,1.12203546]
[1724832242127,0.01780123,58710.0,58709.0,0.17053589]
[1724832242358,0.170261,58734.0,58709.0,0.17053589]
[1724832242359,0.00089981,58741.0,58740.0,0.00020489]
[1724832242614,0.52571444,58741.0,58740.0,0.00020489]
[1724832242842,0.51161981,58741.0,58740.0,0.00020489]
[1724832243061,0.52563041,58741.0,58740.0,0.17044589]
[1724832243306,0.52563041,58741.0,58740.0,1.35711189]
[1724832243572,0.52563041,58741.0,58740.0,1.69759489]
[1724832243794,0.51161981,58741.0,58740.0,1.01162889]
[1724832244238,0.51161981,58741.0,58740.0,1.03462889]
[1724832244239,0.52563041,58741.0,58740.0,1.03462889]
[1724832244453,0.51161981,58741.0,58740.0,0.69414589]
[1724832244663,0.52563041,58741.0,58740.0,0.52390489]
[1724832244877,0.52563041,58741.0,58740.0,0.69414589]
[1724832245526,0.52563041,58741.0,58740.0,0.52390489]
[1724832245959,0.51161981,58741.0,58740.0,0.52390489]
[1724832246184,0.52563041,58741.0,58740.0,0.52390489]
[1724832246451,0.69586841,58741.0,58740.0,0.10020489]
[1724832246677,0.52563041,58741.0,58740.0,0.00020489]
[1724832247782,0.69586841,58741.0,58740.0,0.00020489]
[1724832248472,0.69586841,58741.0,58735.0,0.00020489]
[1724832248473,0.62926275,58741.0,58735.0,0.00020489]
[1724832248698,0.62926275,58741.0,58727.0,0.3813]
[1724832248699,0.510777,58734.0,58733.0,0.00020489]
[1724832248955,1.4471425,58734.0,58733.0,0.00020489]
[1724832249200,1.4471425,58734.0,58720.0,0.3824]
[1724832249201,0.510786,58733.0,58732.0,0.00020489]
[1724832249434,1.36203,58733.0,58732.0,0.00020489]
[1724832249662,1.36203,58733.0,58716.0,0.000818]
[1724832249663,0.170285,58725.0,58724.0,0.00020489]
[1724832249898,0.681005,58725.0,58724.0,0.00020489]
[1724832250124,1.37565635,58725.0,58724.0,0.00020489]
[1724832250346,1.37565635,58725.0,58723.0,0.00020489]
[1724832250347,0.85144,58724.0,58723.0,0.00020489]
[1724832250564,0.85144,58724.0,58716.0,0.000818]
[1724832250565,0.340605,58719.0,58716.0,0.000818]
[1724832250789,0.510924,58717.0,58716.0,0.000818]
[1724832251041,1.36226,58717.0,58716.0,0.000818]
[1724832251248,1.021644,58717.0,58716.0,0.000818]
[1724832251461,1.03586469,58717.0,58716.0,0.000818]
[1724832252050,0.52494069,58717.0,58716.0,0.00102289]
[1724832252513,0.52138551,58717.0,58716.0,0.00102289]
[1724832254966,0.69169351,58717.0,58716.0,0.00102289]
[1724832255203,0.52138551,58717.0,58716.0,0.00102289]
[1724832255640,0.5480965,58717.0,58716.0,0.88815589]
[1724832255852,0.5480965,58717.0,58716.0,1.01115589]
[1724832256288,0.53743099,58717.0,58716.0,1.35177789]
[1724832256517,0.53743099,58717.0,58716.0,1.69739989]
[1724832256737,0.53743099,58717.0,58716.0,2.03802189]
[1724832256738,0.54800364,58717.0,58716.0,2.03802189]
[1724832256948,0.53743099,58717.0,58716.0,1.69239989]
[1724832257185,0.54800364,58717.0,58716.0,1.69739989]
[1724832258572,0.31568192,58717.0,58716.0,2.40196541]
[1724832258799,0.31568192,58717.0,58716.0,2.06134341]
[1724832259047,0.27921348,58717.0,58716.0,2.09548341]
[1724832259335,0.17123638,58717.0,58716.0,2.43610541]
[1724832259561,0.03753807,58717.0,58716.0,2.43610541]
[1724832260268,0.03753807,58717.0,58716.0,1.69739989]
[1724832260515,0.03753807,58717.0,58716.0,1.33377789]
[1724832260997,0.03753807,58717.0,58716.0,2.03834341]
[1724832261671,0.03753807,58717.0,58716.0,2.09548341]
[1724832261908,0.05,58720.0,58719.0,1.30485689]
[1724832262122,0.05,58720.0,58719.0,1.66846189]
[1724832262357,0.05,58720.0,58719.0,1.76846189]
[1724832265140,0.05,58720.0,58719.0,1.73432189]
[1724832266232,0.05,58720.0,58719.0,1.39371689]
[1724832266451,0.05,58720.0,58719.0,1.04811189]
[1724832266678,0.05,58720.0,58719.0,1.39371689]
[1724832266885,0.05,58720.0,58719.0,0.68450689]
[1724832267163,0.05,58720.0,58719.0,0.27050689]
[1724832267393,0.05,58720.0,58719.0,0.61111189]
[1724832268084,0.05,58720.0,58719.0,1.29732189]
[1724832268299,0.05,58720.0,58719.0,2.06236541]
[1724832268728,0.05,58720.0,58719.0,2.08536541]
[1724832269587,0.05,58720.0,58719.0,2.42597041]
[1724832270470,0.05,58720.0,58719.0,1.72142189]
[1724832270945,0.05,58720.0,58719.0,2.08536541]
[1724832271582,0.05,58720.0,58719.0,2.42597041]
[1724832271793,0.05,58720.0,58719.0,1.72142189]
[1724832272002,0.05,58720.0,58719.0,2.42597041]
[1724832272258,0.0099,58729.0,58728.0,1.19713989]
[1724832272480,0.50540786,58764.0,58763.0,0.00020489]
[1724832272704,0.50540786,58764.0,58763.0,0.17037989]
[1724832272942,0.202787,58776.0,58763.0,0.17037989]
[1724832272943,0.008987,58776.0,58775.0,0.00020489]
[1724832274048,0.558824,58776.0,58775.0,0.00020489]
[1724832274277,0.388687,58776.0,58775.0,0.00020489]
[1724832274706,0.558824,58776.0,58775.0,0.00020489]
[1724832274922,0.340292,58773.0,58772.0,0.00020489]
[1724832275134,0.340292,58773.0,58761.0,0.1]
[1724832275135,0.1984,58775.0,58774.0,0.00020489]
[1724832275834,0.22508298,58775.0,58774.0,0.00020489]
[1724832276503,0.39522298,58775.0,58774.0,0.00020489]
[1724832276727,0.22508298,58775.0,58774.0,0.00020489]
[1724832279719,0.02668298,58775.0,58774.0,0.02320489]
[1724832280368,0.02668298,58775.0,58774.0,0.85432216]
[1724832280577,0.02668298,58775.0,58774.0,1.21760816]
[1724832280801,0.02668298,58775.0,58774.0,1.32260816]
[1724832281563,0.02668298,58775.0,58774.0,0.97891989]
[1724832282665,0.02668298,58775.0,58774.0,1.31920589]
[1724832282882,0.02668298,58775.0,58774.0,0.97891989]
[1724832283092,0.02668298,58775.0,58774.0,1.31920589]
[1724832286293,0.02668298,58775.0,58774.0,1.71190589]
[1724832286511,0.008987,58776.0,58775.0,1.23032489]
[1724832286745,0.008987,58776.0,58775.0,2.25476566]
[1724832286971,0.008998,58779.0,58778.0,1.23026489]
[1724832287185,0.00089871,58789.0,58778.0,1.23026489]
[1724832287186,0.00089871,58789.0,58788.0,0.17530689]
[1724832287436,0.00089871,58789.0,58788.0,2.05256541]
[1724832288110,0.00089871,58789.0,58788.0,2.39277041]
[1724832288350,0.00089871,58789.0,58788.0,1.34841689]
[1724832289066,0.00089871,58789.0,58788.0,1.37141689]
[1724832289745,0.00089871,58789.0,58788.0,1.71162189]
[1724832290934,0.00089871,58789.0,58788.0,1.37141689]
[1724832291621,0.00089871,58789.0,58788.0,1.71162189]
[1724832291852,0.00089871,58789.0,58788.0,0.29330689]
[1724832292113,0.00089871,58789.0,58788.0,0.61891331]
[1724832292352,0.01175491,58789.0,58788.0,1.29932331]
[1724832292610,0.00089871,58789.0,58788.0,1.29932331]
[1724832292819,0.00089871,58789.0,58788.0,2.03652831]
[1724832293048,0.00089871,58789.0,58788.0,2.07066831]
[1724832293297,7.1e-07,58789.0,58788.0,2.57933408]
[1724832293542,0.00089871,58792.0,58790.0,1.62441989]
[1724832293750,0.00089871,58792.0,58790.0,3.86726666]
[1724832294250,0.00089871,58792.0,58790.0,3.52707366]
[1724832294487,0.00089871,58792.0,58790.0,3.35861289]
[1724832294939,0.00089871,58792.0,58790.0,1.35008689]
[1724832295154,0.00089871,58792.0,58790.0,1.25008689]
[1724832295380,0.00089871,58792.0,58790.0,1.59027989]
[1724832295613,0.00089871,58792.0,58790.0,1.25008689]
[1724832296036,0.00089871,58792.0,58790.0,0.85068689]
[1724832296493,0.00089871,58792.0,58790.0,0.95072689]
[1724832296715,0.00089871,58792.0,58790.0,0.27034089]
[1724832296934,0.00089871,58792.0,58790.0,0.95912807]
[1724832297188,0.0118109,58791.0,58790.0,1.29932107]
[1724832297411,0.00089871,58791.0,58790.0,0.27034089]
[1724832297660,0.00089871,58791.0,58790.0,0.27374202]
[1724832297906,0.00089871,58791.0,58790.0,0.00706389]
[1724832297907,0.56339871,58791.0,58790.0,0.00706389]
[1724832298144,0.56339871,58791.0,58790.0,0.00024489]
[1724832298379,0.5743109,58791.0,58790.0,0.00024489]
[1724832298617,0.1973109,58791.0,58790.0,0.00024489]
[1724832298849,0.1973109,58791.0,58790.0,0.17034089]
[1724832299072,0.1973109,58791.0,58790.0,0.00024489]
[1724832299528,0.1973109,58791.0,58790.0,0.17034089]
[1724832299768,0.1973109,58791.0,58790.0,0.29334089]
[1724832300021,0.0118109,58791.0,58790.0,0.63693543]
[1724832300261,0.03848235,58791.0,58790.0,0.63693543]
[1724832300510,0.03848235,58791.0,58790.0,0.12324489]
[1724832300946,0.03848235,58791.0,58790.0,0.02324489]
[1724832301186,0.03848235,58791.0,58790.0,0.10024489]
[1724832301394,0.03848235,58791.0,58790.0,0.28901306]
[1724832301616,0.0118109,58791.0,58790.0,0.28901306]
[1724832301837,0.0118109,58791.0,58790.0,0.97780048]
[1724832302065,0.0118109,58791.0,58790.0,1.31799348]
[1724832302285,0.00089871,58791.0,58790.0,1.31799348]
[1724832302761,0.00089871,58791.0,58790.0,1.65818648]
[1724832303466,0.00089871,58791.0,58790.0,0.97439906]
[1724832304363,0.00089871,58791.0,58790.0,0.023]
[1724832304602,0.00089871,58791.0,58789.0,0.170099]
[1724832304886,0.00089871,58791.0,58785.0,0.006821]
[1724832304887,0.170105,58787.0,58785.0,0.006821]
[1724832305105,0.170105,58787.0,58776.0,0.345273]
[1724832305106,0.3977,58789.0,58776.0,0.005]
[1724832305329,0.3977,58789.0,58782.0,0.027567]
[1724832305539,0.3977,58789.0,58775.0,0.005]
[1724832305540,0.18099772,58788.0,58778.0,0.17013]
[1724832305788,0.02667557,58786.0,58776.0,0.340274]
[1724832306016,0.02667557,58786.0,58785.0,0.510333]
[1724832306457,0.02667557,58786.0,58784.0,0.170113]
[1724832306458,0.03756929,58786.0,58784.0,0.170113]
[1724832306671,0.03756929,58786.0,58785.0,0.17351284]
[1724832307150,0.03756929,58786.0,58785.0,0.97695684]
[1724832307390,0.03756929,58786.0,58785.0,1.31717884]
[1724832307588,0.03756929,58786.0,58785.0,1.32211884]
[1724832307802,0.00089871,58791.0,58790.0,1.195675]
[1724832308034,0.00089871,58791.0,58790.0,1.318675]
[1724832308476,0.02756887,58791.0,58790.0,1.318675]
[1724832308964,0.02756887,58791.0,58790.0,0.978482]
[1724832309208,0.02756887,58791.0,58790.0,0.633289]
[1724832309659,0.02756887,58791.0,58790.0,0.973482]
[1724832310358,0.02756887,58791.0,58790.0,0.633289]
[1724832311235,0.02756887,58791.0,58790.0,0.293096]
[1724832311475,0.02756887,58791.0,58790.0,0.1]
[1724832311476,0.60886887,58791.0,58790.0,0.1]
[1724832311715,0.60886887,58791.0,58785.0,0.340219]
[1724832311932,0.60886887,58791.0,58786.0,0.270107]
[1724832311933,0.61976259,58791.0,58786.0,0.270107]
[1724832312403,0.61976259,58791.0,58787.0,0.170105]